bitfinex-derivatives/quotes_BNBF0:USTF0_20250211
["timestamp","ask_amount","ask_price","bid_price","bid_amount"]
[1739298342422,0.3171985,630.52,629.4,0.29152989]
[1739298342620,0.3171985,630.52,629.41,0.3177579]
[1739298342827,0.3171985,630.52,629.42,0.29152989]
[1739298343128,0.3171985,630.52,629.43,0.3177478]
[1739298343328,0.3171985,630.52,629.43,0.60930597]
[1739298343624,0.3171985,630.52,629.44,0.29155817]
[1739298345827,0.3171985,630.52,629.43,0.3177478]
[1739298346028,0.3171985,630.52,629.44,0.29154321]
[1739298351225,0.3171985,630.52,629.45,0.3177377]
[1739298351423,0.3171985,630.52,629.46,0.29154321]
[1739298351829,0.3171985,630.52,629.47,0.31772761]
[1739298352126,0.3171985,630.52,629.48,0.29154321]
[1739298352626,0.3171985,630.52,629.49,0.31771751]
[1739298352830,0.3171985,630.52,629.5,0.29154321]
[1739298354826,0.3171985,630.52,629.49,0.31771751]
[1739298355234,0.3171985,630.52,629.5,0.29153151]
[1739298356837,0.3171985,630.52,629.49,0.31771751]
[1739298357137,0.3171985,630.52,629.5,0.29151626]
[1739298360437,0.3171985,630.52,629.51,0.29163212]
[1739298360837,0.3171985,630.52,629.5,0.29163212]
[1739298361033,0.3171985,630.52,629.52,0.29163212]
[1739298361240,0.3171985,630.52,629.51,0.29163212]
[1739298361532,0.3171985,630.52,629.52,0.29163212]
[1739298361737,0.3171985,630.52,629.11,1.17665087]
[1739298361937,0.3171985,630.52,629.12,0.90522966]
[1739298362137,0.27528133,630.51,629.13,0.29166494]
[1739298362334,0.3171985,630.52,629.14,0.29166494]
[1739298362634,0.2752506,630.51,629.12,0.90522966]
[1739298362839,0.2752506,630.51,629.13,0.29166494]
[1739298363038,0.2752506,630.51,629.14,0.29166494]
[1739298363337,0.2752506,630.51,629.12,0.90522966]
[1739298363541,0.2752506,630.51,629.13,0.29166494]
[1739298363742,0.2752506,630.51,629.13,0.90522966]
[1739298363937,0.2752506,630.51,629.01,1.17665087]
[1739298363938,0.3171985,630.52,629.14,0.29166494]
[1739298364137,0.27523539,630.51,629.02,0.29166494]
[1739298364338,0.27523539,630.51,629.03,0.29166494]
[1739298364535,0.27523539,630.51,629.04,0.29166494]
[1739298364736,0.27523539,630.51,629.02,0.29166494]
[1739298364939,2.39710104,630.51,629.03,0.29166494]
[1739298365135,0.27523539,630.5,629.04,0.29166494]
[1739298365336,0.27523539,630.51,629.02,0.29166494]
[1739298365536,0.27523539,630.5,629.03,0.29166494]
[1739298365740,0.27523539,630.5,629.02,0.29166494]
[1739298366040,0.31721862,630.48,629.03,0.29166494]
[1739298366239,0.27523539,630.47,629.02,0.29166494]
[1739298366439,0.31723372,630.45,629.02,0.29166494]
[1739298366734,0.27523539,630.44,629.02,0.29166494]
[1739298366939,0.31724881,630.42,629.02,0.29166494]
[1739298367139,0.31724881,630.42,629.01,1.17665087]
[1739298367140,0.2751791,630.41,629.03,0.29179395]
[1739298367340,0.2751791,630.41,629.02,0.29179395]
[1739298367541,0.31726391,630.39,629.03,0.29179395]
[1739298367741,0.2751791,630.38,628.68,0.29179395]
[1739298367941,0.31727901,630.36,628.69,0.60991575]
[1739298368245,0.2751791,630.35,628.7,0.90564143]
[1739298368544,0.2751791,630.35,628.71,0.90564143]
[1739298368741,0.31727901,630.36,628.69,0.3181218]
[1739298368947,0.27515851,630.35,628.7,0.29183765]
[1739298369241,0.31729411,630.33,628.71,0.31811168]
[1739298369443,0.27515851,630.32,628.72,0.29183765]
[1739298372046,0.31730921,630.3,628.72,0.29183765]
[1739298372243,0.27515851,630.29,628.73,0.31810156]
[1739298372442,0.31732432,630.27,628.74,0.29183765]
[1739298372644,0.27515851,630.26,628.73,0.31810156]
[1739298372844,0.31733942,630.24,628.74,0.29183765]
[1739298373048,0.27515851,630.23,628.75,0.6099291]
[1739298373249,0.31734949,630.22,628.76,0.60992404]
[1739298373448,0.31734949,630.22,628.77,0.29183765]
[1739298373649,0.31734949,630.22,628.78,0.29183765]
[1739298373951,0.31734949,630.22,628.79,0.29183765]
[1739298374148,0.31734949,630.22,628.8,0.29183765]
[1739298374345,0.31734949,630.22,628.81,0.60989874]
[1739298374547,0.31734949,630.22,628.82,0.60989369]
[1739298374850,0.31734949,630.22,628.83,0.31805098]
[1739298375551,0.31734949,630.22,628.84,0.29183765]
[1739298375750,0.31734949,630.22,628.85,0.31804086]
[1739298376151,0.31734949,630.22,628.86,0.29183765]
[1739298376345,0.31734949,630.22,628.87,0.31803075]
[1739298376552,0.31734949,630.22,628.88,0.29183765]
[1739298376752,0.31734949,630.22,628.89,0.60985828]
[1739298377052,0.31734949,630.22,628.9,1.22376596]
[1739298377250,0.31734949,630.22,628.91,1.2237609]
[1739298377444,0.31734949,630.22,628.57,1.65860401]
[1739298377445,0.31734949,630.22,628.92,0.60984311]
[1739298377649,0.31734949,630.22,628.93,0.60983806]
[1739298377946,0.31734949,630.22,628.94,1.22340241]
[1739298378151,0.31734949,630.22,628.95,0.90540706]
[1739298378450,0.31734949,630.22,628.96,0.90540706]
[1739298378646,0.31734949,630.22,628.97,0.60970389]
[1739298378946,0.31734949,630.22,628.98,0.90540706]
[1739298379150,0.31734949,630.22,628.99,0.90540706]
[1739298379351,0.31734949,630.22,629.0,0.29172371]
[1739298379551,0.31734949,630.22,628.97,0.31798018]
[1739298379749,0.31734949,630.22,628.98,0.29171411]
[1739298379950,0.31734949,630.22,628.99,0.31797007]
[1739298380250,0.31734949,630.22,629.0,0.29171411]
[1739298380454,0.31734949,630.22,628.99,0.31797007]
[1739298380753,0.31734949,630.22,629.0,0.29171411]
[1739298382650,0.31734949,630.22,629.01,0.29171411]
[1739298382955,0.31734949,630.22,629.02,0.60966902]
[1739298383154,0.31734949,630.22,629.03,0.29171411]
[1739298383356,0.31734949,630.22,629.04,0.29171411]
[1739298383556,0.31734949,630.22,629.05,0.29171411]
[1739298383954,0.31734949,630.22,629.06,0.29171411]
[1739298384159,0.31734949,630.22,629.04,0.29171411]
[1739298384358,0.31734949,630.22,629.05,0.29171411]
[1739298384554,0.31734949,630.22,629.04,0.29171411]
[1739298384760,0.31734949,630.22,629.05,0.29171411]
[1739298384960,0.31734949,630.22,629.03,0.31794985]
[1739298385161,0.31734949,630.22,629.04,0.29171411]
[1739298385657,0.31734949,630.22,629.05,0.31793975]
[1739298385857,0.31734949,630.22,629.06,0.29171411]
[1739298386058,0.31734949,630.22,629.07,0.31792964]
[1739298386259,0.31734949,630.22,629.08,0.29171411]
[1739298386660,0.31734949,630.22,629.07,0.31792964]
[1739298386860,0.31734949,630.22,629.08,0.29168565]
[1739298388360,0.31734949,630.22,629.07,0.31792964]
[1739298388564,0.31734949,630.22,629.08,0.2917552]
[1739298392161,0.31734949,630.22,629.09,0.29177104]
[1739298392363,0.31734949,630.22,629.07,0.31792964]
[1739298392665,0.31734949,630.22,628.56,1.17665087]
[1739298392867,0.27576797,630.21,628.58,1.65847227]
[1739298393065,6.33200064,630.2,628.59,1.22402536]
[1739298393261,6.60777365,630.19,628.6,0.61003894]
[1739298393561,9.22685905,630.18,628.61,1.22401524]
[1739298393761,6.29040905,630.17,628.62,0.29187159]
[1739298393965,6.60778876,630.16,628.63,0.29187159]
[1739298394168,6.60779379,630.15,628.64,0.6100187]
[1739298394364,6.60779379,630.15,628.65,1.223995]
[1739298394365,2.71960673,630.14,628.65,1.223995]
[1739298394562,2.71961177,630.13,628.66,1.22398993]
[1739298394760,0.31739986,630.12,628.67,0.61000351]
[1739298394960,0.31739986,630.12,628.68,0.60999845]
[1739298395166,0.31739986,630.12,628.69,0.60999339]
[1739298395365,0.31739986,630.12,628.7,0.60998833]
[1739298395561,0.31739986,630.12,628.71,0.60998327]
[1739298395763,0.31739986,630.12,628.72,0.60997821]
[1739298395958,0.31739986,630.12,628.58,1.65847227]
[1739298395959,0.31739986,630.12,628.73,0.60997315]
[1739298396266,0.31739986,630.12,628.74,0.6099681]
[1739298396567,0.31739986,630.12,628.75,0.29187159]
[1739298396862,0.31739986,630.12,628.76,0.31808639]
[1739298397061,0.31739986,630.12,628.77,0.29187159]
[1739298397266,0.31739986,630.12,628.78,0.31807627]
[1739298397464,0.31739986,630.12,628.78,0.60986366]
[1739298397662,0.31739986,630.12,628.79,0.29178739]
[1739298397861,0.31739986,630.12,628.8,0.31806615]
[1739298398367,0.31739986,630.12,628.81,0.29178739]
[1739298398668,0.31739986,630.12,628.82,0.31805604]
[1739298398868,0.31739986,630.12,628.83,0.29178739]
[1739298399368,0.31739986,630.12,628.84,0.29180236]
[1739298399561,0.31739986,630.12,628.83,0.29180236]
[1739298400968,0.31739986,630.12,628.82,0.31805604]
[1739298401163,0.31739986,630.12,628.83,0.29179638]
[1739298402166,0.31739986,630.12,628.84,0.31804592]
[1739298402363,0.31739986,630.12,628.85,0.29179638]
[1739298404473,0.31739986,630.12,628.84,0.31804592]
[1739298404772,0.31739986,630.12,628.85,0.29177694]
[1739298404966,0.31739986,630.12,628.86,0.31803581]
[1739298405170,0.31739986,630.12,628.87,0.29177694]
[1739298405472,0.31739986,630.12,628.88,0.31802569]
[1739298405669,0.31739986,630.12,628.89,0.29177694]
[1739298405872,0.31739986,630.12,628.9,0.31801558]
[1739298406073,0.31739986,630.12,628.91,0.29177694]
[1739298406269,0.31739986,630.12,628.92,0.31800546]
[1739298406467,0.31739986,630.12,628.93,0.29177694]
[1739298408373,0.31739986,630.12,628.94,0.29177694]
[1739298408576,0.31739986,630.12,628.95,0.29177694]
[1739298408776,0.31739986,630.12,628.96,0.29177694]
[1739298408979,0.31739986,630.12,628.97,0.29177694]
[1739298409173,0.31739986,630.12,628.98,0.29177694]
[1739298409373,0.31739986,630.12,628.99,0.29177694]
[1739298409678,0.31739986,630.12,629.0,0.29177694]
[1739298409977,0.31739986,630.12,629.01,0.29177694]
[1739298410181,0.31739986,630.12,628.93,0.29177694]
[1739298410478,0.31739986,630.12,628.94,0.29177694]
[1739298410674,0.31739986,630.12,628.93,0.29177694]
[1739298412985,0.31739986,630.12,628.93,0.29178865]
[1739298413482,0.31739986,630.12,628.92,0.31800546]
[1739298413683,0.31739986,630.12,628.93,0.29176234]
[1739298415879,0.31739986,630.12,628.94,0.31799535]
[1739298416077,0.31739986,630.12,628.95,0.29176234]
[1739298416280,0.31739986,630.12,628.96,0.31798524]
[1739298416482,0.31739986,630.12,628.97,0.29176234]
[1739298416683,0.31739986,630.12,628.98,0.31797513]
[1739298416983,0.31739986,630.12,628.99,0.29176234]
[1739298417183,0.31739986,630.12,629.0,0.29174543]
[1739298417382,0.31739986,630.12,629.01,0.29174543]
[1739298417684,0.31739986,630.12,629.02,0.29174543]
[1739298417877,0.31739986,630.12,629.03,0.29174543]
[1739298418078,0.31739986,630.12,628.98,0.31797513]
[1739298418079,0.31739986,630.12,629.04,0.29174543]
[1739298418279,0.31739986,630.12,628.99,0.90547102]
[1739298418483,0.31739986,630.12,629.0,0.29174543]
[1739298418682,0.31739986,630.12,628.99,0.29174543]
[1739298418877,0.31739986,630.12,629.0,0.60971045]
[1739298419078,0.31739986,630.12,629.01,1.22343098]
[1739298419284,0.31739986,630.12,629.02,0.29174543]
[1739298419678,0.31739986,630.12,629.01,0.31795996]
[1739298419880,0.31739986,630.12,629.02,0.29174543]
[1739298421583,0.31739986,630.12,629.03,0.31794985]
[1739298421784,0.31739986,630.12,629.04,0.29174543]
[1739298421985,0.31739986,630.12,629.05,0.31793975]
[1739298422185,0.31739986,630.12,629.06,0.29174543]
[1739298422487,0.31739986,630.12,629.07,0.31792964]
[1739298422689,0.31739986,630.12,629.08,0.29174543]
[1739298422884,0.31739986,630.12,629.09,0.31791953]
[1739298423086,0.31739986,630.12,629.1,0.29174543]
[1739298423282,0.31739986,630.12,629.11,0.31790942]
[1739298423486,0.31739986,630.12,629.12,0.29174543]
[1739298423882,0.31739986,630.12,629.11,0.31790942]
[1739298424186,0.31739986,630.12,629.12,0.29167767]
[1739298430986,0.31739986,630.12,629.11,0.31790942]
[1739298431191,0.31739986,630.12,629.12,0.29176612]
[1739298434190,0.31739986,630.12,629.13,0.29176612]
[1739298434591,0.31739986,630.12,629.11,0.31790942]
[1739298434791,0.31739986,630.12,629.12,0.29169918]
[1739298435086,0.31739986,630.12,629.13,0.29169918]
[1739298435291,0.31739986,630.12,629.14,0.29169918]
[1739298435492,0.31739986,630.12,629.15,0.29169918]
[1739298435791,0.31739986,630.12,629.16,0.29169918]
[1739298435987,0.31739986,630.12,629.12,0.29169918]
[1739298436188,6.06235669,630.11,629.13,0.29169918]
[1739298436489,6.06235669,630.1,629.11,0.31790942]
[1739298436691,6.06235669,630.09,629.12,0.29173636]
[1739298436992,6.06235669,630.08,629.12,0.29173636]
[1739298437286,0.31739986,630.12,629.12,0.29173636]
[1739298437287,6.06235669,630.07,629.12,0.29173636]
[1739298437491,6.06235669,630.06,629.12,0.29173636]
[1739298437694,2.14307977,630.05,629.12,0.29173636]
[1739298437993,0.31739986,630.12,629.12,0.29173636]
[1739298439795,0.31739986,630.12,629.11,0.31790942]
[1739298439992,0.31739986,630.12,629.12,0.29173636]
[1739298452905,0.31739986,630.12,629.11,0.31790942]
[1739298460816,0.31739986,630.12,629.12,0.29175099]
[1739298468420,0.31739986,630.12,629.13,0.29175099]
[1739298468621,0.31739986,630.12,629.14,0.29175099]
[1739298468815,0.31739986,630.12,629.11,0.31790942]
[1739298468816,0.31739986,630.12,629.12,0.29175099]
[1739298469216,0.31739986,630.12,629.13,0.29175099]
[1739298469421,0.31739986,630.12,629.12,0.29175099]
[1739298470223,0.31739986,630.12,629.13,1.17665087]
[1739298470415,0.31739986,630.12,629.14,0.29175099]
[1739298471624,0.31739986,630.12,629.14,0.90542668]
[1739298471818,0.31739986,630.12,629.14,0.29175099]
[1739298472022,6.05796121,630.11,629.14,0.29175099]
[1739298472222,6.05796121,630.1,629.14,0.29175099]
[1739298472525,6.05796121,630.09,629.14,0.9054319]
[1739298472825,6.05796121,630.08,629.15,0.9054319]
[1739298473021,6.05796121,630.07,629.12,0.9054319]
[1739298473223,6.05796121,630.06,629.13,0.9054319]
[1739298473425,2.61908036,630.06,629.14,0.29175099]
[1739298473626,2.61908036,630.06,629.13,0.29175099]
[1739298473823,0.31739986,630.12,629.12,0.9054319]
[1739298474023,0.31739986,630.12,629.13,0.29175099]
[1739298474324,0.31739986,630.12,629.14,0.29175099]
[1739298474530,0.31739986,630.12,629.11,1.49456029]
[1739298475625,0.31739986,630.12,629.22,1.17665087]
[1739298478328,0.31739986,630.12,629.11,0.31790942]
[1739298484332,0.31739986,630.12,629.12,0.29171239]
[1739298488434,0.31739986,630.12,629.11,0.31790942]
[1739298488637,0.31739986,630.12,629.12,0.29171649]
[1739298493142,0.31739986,630.12,629.12,0.29171649]
[1739298494940,0.31739986,630.12,629.08,1.17665087]
[1739298495141,0.31739986,630.12,629.09,0.29181194]
[1739298495743,0.31739986,630.12,629.08,1.17665087]
[1739298495943,0.31739986,630.12,629.09,0.29181471]
[1739298496244,0.31739986,630.12,629.08,1.17665087]
[1739298496841,0.31739986,630.12,628.83,1.17665087]
[1739298497040,0.31739986,630.12,628.84,0.29183378]
[1739298499337,0.31739986,630.12,628.67,0.29183378]
[1739298499540,0.31739986,630.12,628.68,0.31812686]
[1739298499737,0.31739986,630.12,628.69,0.29183378]
[1739298499938,0.31739986,630.12,628.7,0.31811674]
[1739298500143,0.31739986,630.12,628.71,0.29183378]
[1739298500337,0.31739986,630.12,628.72,0.31810662]
[1739298500541,6.06170148,630.11,628.73,0.29183378]
[1739298500742,6.06170148,630.1,628.74,0.29183378]
[1739298501038,6.37911645,630.09,628.75,0.29183378]
[1739298501241,9.08164932,630.08,628.76,0.31808639]
[1739298501441,6.37912652,630.07,628.77,0.29183378]
[1739298501635,0.31743008,630.06,628.78,0.31807627]
[1739298501841,0.31743008,630.06,628.79,0.29183378]
[1739298502445,0.31743008,630.06,628.8,0.60989993]
[1739298502645,3.9187786,630.05,628.81,0.60989487]
[1739298502845,3.9187786,630.04,628.82,0.31805604]
[1739298503144,3.9187786,630.03,628.83,0.29179914]
[1739298503340,2.70252783,630.05,628.83,0.60985012]
[1739298503546,2.70252783,630.05,628.84,0.29179914]
[1739298504747,2.70252783,630.05,628.85,0.29180763]
[1739298504942,2.70252783,630.05,628.86,0.29180763]
[1739298505147,0.31743008,630.06,628.84,0.29180763]
[1739298505342,0.31743008,630.06,628.85,0.29180763]
[1739298505546,0.31743008,630.06,628.84,0.29180763]
[1739298505746,0.31743008,630.06,628.85,0.29180763]
[1739298505945,0.31743008,630.06,628.84,0.29180763]
[1739298506146,0.31743008,630.06,628.85,0.29180763]
[1739298506346,0.31743008,630.06,628.86,0.31803581]
[1739298506647,0.31743008,630.06,628.87,0.29180763]
[1739298508144,0.31743008,630.06,628.86,0.31803581]
[1739298508447,0.31743008,630.06,628.87,0.29180644]
[1739298510050,0.31743008,630.06,628.86,0.31803581]
[1739298510353,0.31743008,630.06,628.87,0.2918584]
[1739298511156,0.31743008,630.06,628.86,0.31803581]
[1739298511450,0.31743008,630.06,628.87,0.29187777]
[1739298520761,0.31743008,630.06,628.86,0.31803581]
[1739298520961,0.31743008,630.06,628.87,0.29192086]
[1739298523362,0.31743008,630.06,628.88,0.29189864]
[1739298523559,0.31743008,630.06,628.87,0.29189864]
[1739298524561,0.31743008,630.06,628.88,0.29190927]
[1739298524761,0.31743008,630.06,628.87,0.29190927]
[1739298524961,0.31743008,630.06,628.88,0.29190927]
[1739298525463,0.31743008,630.06,628.89,0.29190927]
[1739298525763,0.31743008,630.06,628.9,0.29190927]
[1739298525964,0.31743008,630.06,628.87,0.29190927]
[1739298530170,0.31743008,630.06,628.86,0.31803581]
[1739298539582,0.31743008,630.06,628.87,0.29187334]
[1739298543877,0.31743008,630.06,628.86,0.31803581]
[1739298544082,0.31743008,630.06,628.87,0.29186611]
[1739298545676,0.31743008,630.06,628.86,0.31803581]
[1739298545880,0.31743008,630.06,628.88,0.29183984]
[1739298546075,0.31743008,630.06,628.89,0.29183984]
[1739298546477,0.31743008,630.06,628.9,0.29183984]
[1739298546783,0.31743008,630.06,628.91,0.29183984]
[1739298546978,0.31743008,630.06,628.92,0.29183984]
[1739298547182,0.31743008,630.06,628.87,0.29183984]
[1739298547380,0.31743008,630.06,628.88,0.29183984]
[1739298547785,0.31743008,630.06,628.89,0.29183943]
[1739298547985,0.31743008,630.06,628.87,0.29183943]
[1739298548179,0.31743008,630.06,628.9,0.29183943]
[1739298548378,0.31743008,630.06,628.91,0.29183943]
[1739298548578,0.31743008,630.06,628.87,0.29183943]
[1739298548779,0.31743008,630.06,628.88,0.29183943]
[1739298548976,0.31743008,630.06,628.87,0.29183943]
[1739298550885,0.31743008,630.06,628.88,0.31802569]
[1739298551087,0.31743008,630.06,628.89,0.29183943]
[1739298551387,0.31743008,630.06,628.9,0.29180915]
[1739298551687,0.31743008,630.06,628.91,0.29180915]
[1739298551886,0.31743008,630.06,628.92,0.29180915]
[1739298552088,0.31743008,630.06,628.89,0.29180915]
[1739298552287,0.31743008,630.06,628.9,0.29180915]
[1739298552488,0.31743008,630.06,628.89,0.29180915]
[1739298552684,0.31743008,630.06,628.9,0.29180915]
[1739298552886,0.31743008,630.06,628.89,0.29180915]
[1739298553187,0.31743008,630.06,628.9,0.29180915]
[1739298553390,0.31743008,630.06,628.89,0.29180915]
[1739298553587,0.31743008,630.06,628.91,0.29180915]
[1739298553788,0.31743008,630.06,628.9,0.29180915]
[1739298554088,0.31743008,630.06,628.88,0.31802569]
[1739298554089,0.31743008,630.06,628.91,0.29180915]
[1739298554385,0.31743008,630.06,628.89,0.29180915]
[1739298554582,0.31743008,630.06,628.9,0.29180915]
[1739298554786,0.31743008,630.06,628.89,0.29180915]
[1739298557789,6.12476541,630.05,628.89,0.29180915]
[1739298558096,0.31743008,630.06,628.9,0.60982473]
[1739298558097,8.82729324,630.04,628.9,0.60982473]
[1739298558295,6.12476541,630.03,628.91,1.2236623]
[1739298558497,3.98623055,630.02,628.92,0.60981461]
[1739298558696,3.98623055,630.02,628.93,0.60980956]
[1739298558895,3.98623055,630.02,628.94,0.6098045]
[1739298559197,3.98623055,630.02,628.95,1.22364208]
[1739298559391,2.13853486,630.03,628.96,0.60979439]
[1739298559696,2.70252783,630.04,628.97,1.22363196]
[1739298559894,2.70252783,630.04,628.98,0.29180915]
[1739298560190,2.70252783,630.04,628.99,0.29180915]
[1739298560390,0.31743008,630.06,628.98,0.93181776]
[1739298560391,0.31743008,630.06,629.0,0.60977417]
[1739298560589,0.31743008,630.06,629.01,0.60976911]
[1739298560787,0.31743008,630.06,629.02,0.29180915]
[1739298563900,0.31743008,630.06,629.03,0.31794985]
[1739298564096,0.31743008,630.06,629.04,0.29180915]
[1739298565205,0.31743008,630.06,629.05,0.31793975]
[1739298565398,0.31743008,630.06,629.06,0.29180915]
[1739298565705,0.31743008,630.06,629.07,0.31792964]
[1739298565902,0.31743008,630.06,629.08,0.29170955]
[1739298569604,0.31743008,630.06,629.09,0.29179942]
[1739298569801,0.31743008,630.06,629.08,0.29179942]
[1739298572299,0.31743008,630.06,629.07,0.31792964]
[1739298572498,0.31743008,630.06,629.08,0.29179049]
[1739298574105,0.31743008,630.06,629.09,0.29179049]
[1739298574306,0.31743008,630.06,629.08,0.29179049]
[1739298574612,0.31743008,630.06,629.09,0.29179049]
[1739298574806,6.12476541,630.58,629.1,0.31791448]
[1739298574999,6.71710035,630.57,629.11,0.29179049]
[1739298575205,6.71710538,630.56,629.12,0.31790437]
[1739298575404,6.12476541,630.55,629.12,0.31790437]
[1739298575706,6.71711544,630.54,629.13,0.29179049]
[1739298576001,6.71712047,630.53,629.13,0.90560839]
[1739298576205,6.7171255,630.52,629.13,0.29179049]
[1739298576402,6.71713053,630.51,629.13,0.29179049]
[1739298576600,0.59237015,630.5,629.13,0.29179049]
[1739298576805,0.59237518,630.49,629.13,0.29179049]
[1739298577007,0.31721862,630.48,629.13,0.29179049]
[1739298580402,0.31721862,630.48,629.14,0.31789426]
[1739298580706,0.31721862,630.48,629.15,0.29179049]
[1739298580907,0.31721862,630.48,629.16,0.31788416]
[1739298581107,0.31721862,630.48,629.17,0.29179049]
[1739298581308,0.31721862,630.48,629.18,0.31787405]
[1739298581506,0.31721862,630.48,629.19,0.29179049]
[1739298581708,0.31721862,630.48,629.2,0.31786395]
[1739298581905,0.31721862,630.48,629.21,0.29179049]
[1739298582106,0.31721862,630.48,629.22,0.31785385]
[1739298582409,0.31721862,630.48,629.23,0.29179049]
[1739298583005,0.31721862,630.48,629.23,0.61351744]
[1739298583204,0.31721862,630.48,629.23,0.29164151]
[1739298583405,0.31721862,630.48,629.24,0.29164151]
[1739298583603,0.31721862,630.48,629.23,0.29164151]
[1739298583806,0.31721862,630.48,629.24,0.29164151]
[1739298584107,0.31721862,630.48,629.25,0.29164151]
[1739298584307,0.31721862,630.48,629.23,0.29164151]
[1739298584512,0.31721862,630.48,629.24,0.29164151]
[1739298584809,0.31721862,630.48,629.25,0.29164151]
[1739298585010,0.31721862,630.48,629.23,0.29164151]
[1739298586511,0.27523914,630.47,629.23,0.29164151]
[1739298586706,0.31723372,630.45,629.23,0.29164151]
[1739298586912,0.27523914,630.44,629.23,0.29164151]
[1739298587213,0.31724881,630.42,629.23,0.29164151]
[1739298587409,0.27523914,630.41,628.91,0.29164151]
[1739298587606,0.31726391,630.39,628.9,1.17665087]
[1739298587912,0.31726391,630.39,628.91,0.29179985]
[1739298588105,0.31726391,630.39,628.76,0.29179985]
[1739298588309,0.27528612,630.38,628.77,0.60988118]
[1739298588714,0.27528612,630.38,628.78,0.29179985]
[1739298589012,0.31727901,630.36,628.79,0.31807121]
[1739298589212,0.31727901,630.36,628.8,0.29179985]
[1739298589606,0.31727901,630.36,628.81,0.31806109]
[1739298589810,0.31727901,630.36,628.82,0.29180087]
[1739298590111,0.31727901,630.36,628.83,0.31805098]
[1739298590413,0.31727901,630.36,628.84,0.29180087]
[1739298590613,0.31727901,630.36,628.85,0.31804086]
[1739298590807,0.31727901,630.36,628.86,0.29180087]
[1739298591114,0.31727901,630.36,628.87,0.31803075]
[1739298591310,0.31727901,630.36,628.88,0.29180087]
[1739298591508,0.31727901,630.36,628.89,0.31802063]
[1739298591709,0.31727901,630.36,628.9,0.29180087]
[1739298591907,0.31727901,630.36,628.91,0.31801052]
[1739298592210,0.31727901,630.36,628.92,0.29180087]
[1739298592412,0.31727901,630.36,628.93,0.31800041]
[1739298592609,0.31727901,630.36,628.94,0.29180087]
[1739298592915,0.31727901,630.36,628.95,0.3179903]
[1739298593213,0.31727901,630.36,628.96,0.29180087]
[1739298597024,0.31727901,630.36,628.95,0.3179903]
[1739298597420,0.31727901,630.36,628.96,0.29181712]
[1739298598029,0.31727901,630.36,628.95,0.3179903]
[1739298598623,2.13031541,630.35,628.95,0.3179903]
[1739298598829,6.38450346,630.34,628.96,0.29187074]
[1739298599027,6.70179757,630.33,628.96,0.29187074]
[1739298599333,0.31730418,630.31,628.96,0.29187074]
[1739298599524,0.27520261,630.3,628.96,0.29187074]
[1739298599725,6.38450346,630.3,628.66,1.17665087]
[1739298599925,6.38450346,630.29,628.67,0.29192486]
[1739298600230,0.31732432,630.27,628.67,0.61005678]
[1739298600430,0.27520261,630.26,628.68,0.29192486]
[1739298600629,6.38450346,630.26,628.68,0.29192486]
[1739298600930,6.38450346,630.25,628.68,0.29192486]
[1739298601129,6.10930085,630.24,628.68,0.29192486]
[1739298601329,0.27520261,630.23,628.68,0.29192486]
[1739298601728,4.25418805,630.24,628.68,0.29192486]
[1739298602031,4.25418805,630.23,628.68,0.29192486]
[1739298602329,0.27520261,630.22,628.67,0.31813192]
[1739298603030,0.27520261,630.21,628.67,0.31813192]
[1739298603225,0.27520261,630.26,628.67,0.31813192]
[1739298603429,0.27520261,630.26,628.68,0.2920064]
[1739298604231,0.31733942,630.24,628.69,0.2919861]
[1739298604428,0.2750264,630.23,628.68,0.2919861]
[1739298604626,0.2750264,630.23,628.69,0.2919861]
[1739298604827,6.10930085,630.22,628.67,0.31813192]
[1739298605028,6.38437145,630.21,628.68,0.29195036]
[1739298605224,6.10930085,630.2,628.68,0.29195036]
[1739298605532,0.31736964,630.18,628.68,0.29195036]
[1739298605826,6.38437145,630.17,628.68,0.29195036]
[1739298606032,6.38437145,630.17,628.67,0.31813192]
[1739298606033,6.10930085,630.16,628.67,0.31813192]
[1739298606226,0.31738978,630.14,628.68,0.29198197]
[1739298606527,6.38432146,630.13,628.68,0.29198197]
[1739298606728,0.31740489,630.11,628.68,0.29198197]
[1739298606931,6.38432146,630.1,628.68,0.29198197]
[1739298607225,6.38432146,630.09,628.68,0.29198197]
[1739298607426,6.38432146,630.08,628.68,0.29198197]
[1739298607629,6.10930085,630.07,628.68,0.29198197]
[1739298607831,3.97898544,630.06,628.68,0.29198197]
[1739298608232,2.13031541,630.07,628.68,0.29198197]
[1739298608429,2.80340441,630.06,628.68,0.29198197]
[1739298608831,0.27506686,630.05,628.68,0.29198197]
[1739298609332,0.31744016,630.04,628.68,0.29198197]
[1739298609532,0.59262935,630.04,628.68,0.29198197]
[1739298609731,0.27518919,630.03,628.69,0.29198197]
[1739298609935,0.31745023,630.02,628.7,0.29198197]
[1739298610130,0.27518919,630.01,628.71,0.29198197]
[1739298610333,0.31746031,630.0,628.72,0.29198197]
[1739298610630,0.31746031,630.0,628.73,0.29198197]
[1739298610832,0.31746031,630.0,628.74,0.31809651]
[1739298611032,0.31746031,630.0,628.75,0.29198197]
[1739298611533,0.31746031,630.0,628.76,0.29187819]
[1739298611732,0.31746031,630.0,628.75,0.29187819]
[1739298611929,0.31746031,630.0,628.76,0.29187819]
[1739298612128,0.31746031,630.0,628.75,0.29187819]
[1739298612435,0.31746031,630.0,628.76,0.29187819]
[1739298612633,0.31746031,630.0,628.75,0.29187819]